[Event "Titled Tuesday Blitz October 11 Early 2022"]
[White "Azadaliyev, Jahandar"]
[Black "Vaibhav Jayant Raut"]
[WhiteFideId "13425811"]
[BlackFideId "5089034"]
[WhiteElo "2204"]
[BlackElo "2147"]
[Result "1/2-1/2"]
[Round "04"]
[TimeControl "180+1"]
[Date "2022.10.12"]
[WhiteClock "0:00:07"]
[BlackClock "0:00:05"]

1. e4 {[%clk 0:03:00]}  c5 {[%clk 0:02:57]} 2. Nf3 {[%clk 0:02:53]}  Nc6 {[%clk 0:02:57]} 3. d4 {[%clk 0:02:50]}  cxd4 {[%clk 0:02:58]} 4. Nxd4 {[%clk 0:02:50]}  Nf6 {[%clk 0:02:58]} 5. Nc3 {[%clk 0:02:46]}  e6 {[%clk 0:02:57]} 6. Ndb5 {[%clk 0:02:46]}  Bb4 {[%clk 0:02:57]} 7. a3 {[%clk 0:02:45]}  Bxc3+ {[%clk 0:02:57]} 8. Nxc3 {[%clk 0:02:46]}  d5 {[%clk 0:02:57]} 9. exd5 {[%clk 0:02:29]}  exd5 {[%clk 0:02:56]} 10. Bd3 {[%clk 0:02:29]}  O-O {[%clk 0:02:51]} 11. O-O {[%clk 0:02:17]}  Bg4 {[%clk 0:02:50]} 12. f3 {[%clk 0:02:13]}  Be6 {[%clk 0:02:47]} 13. Bg5 {[%clk 0:02:07]}  h6 {[%clk 0:02:46]} 14. Bxf6 {[%clk 0:02:07]}  Qxf6 {[%clk 0:02:47]} 15. Re1 {[%clk 0:02:07]}  Rad8 {[%clk 0:02:45]} 16. Qd2 {[%clk 0:01:51]}  Rfe8 {[%clk 0:02:43]} 17. Rad1 {[%clk 0:01:49]}  h5 {[%clk 0:02:38]} 18. Qf2 {[%clk 0:01:44]}  h4 {[%clk 0:02:36]} 19. Bb5 {[%clk 0:01:42]}  h3 {[%clk 0:02:31]} 20. g3 {[%clk 0:01:43]}  a6 {[%clk 0:02:08]} 21. Bxc6 {[%clk 0:01:37]}  bxc6 {[%clk 0:02:09]} 22. Ne2 {[%clk 0:01:38]}  Qxb2 {[%clk 0:02:06]} 23. Qc5 {[%clk 0:01:31]}  Qb5 {[%clk 0:01:31]} 24. Qxb5 {[%clk 0:01:11]}  cxb5 {[%clk 0:01:32]} 25. Nd4 {[%clk 0:01:12]}  Rc8 {[%clk 0:01:32]} 26. Re3 {[%clk 0:01:10]}  Rc4 {[%clk 0:01:26]} 27. Kf2 {[%clk 0:01:08]}  Rec8 {[%clk 0:01:22]} 28. Rdd3 {[%clk 0:01:04]}  Kh7 {[%clk 0:01:06]} 29. g4 {[%clk 0:01:02]}  Kg6 {[%clk 0:01:04]} 30. Kg3 {[%clk 0:01:00]}  Kf6 {[%clk 0:01:03]} 31. Kxh3 {[%clk 0:00:56]}  Rxc2 {[%clk 0:00:54]} 32. Nxc2 {[%clk 0:00:54]}  Rxc2 {[%clk 0:00:55]} 33. Kg3 {[%clk 0:00:55]}  g5 {[%clk 0:00:44]} 34. Rd4 {[%clk 0:00:50]}  Rc4 {[%clk 0:00:39]} 35. Red3 {[%clk 0:00:45]}  Ke5 {[%clk 0:00:34]} 36. Rxc4 {[%clk 0:00:41]}  bxc4 {[%clk 0:00:29]} 37. Re3+ {[%clk 0:00:40]}  Kd4 {[%clk 0:00:28]} 38. Kf2 {[%clk 0:00:40]}  c3 {[%clk 0:00:24]} 39. Re1 {[%clk 0:00:36]}  Kc4 {[%clk 0:00:15]} 40. Ke2 {[%clk 0:00:26]}  d4 {[%clk 0:00:15]} 41. Kd1 {[%clk 0:00:23]}  Bd5 {[%clk 0:00:15]} 42. f4 {[%clk 0:00:17]}  gxf4 {[%clk 0:00:14]} 43. Rf1 {[%clk 0:00:16]}  f3 {[%clk 0:00:09]} 44. h4 {[%clk 0:00:16]}  Kd3 {[%clk 0:00:06]} 45. h5 {[%clk 0:00:16]}  Ke3 {[%clk 0:00:06]} 46. h6 {[%clk 0:00:16]}  Be4 {[%clk 0:00:06]} 47. Re1+ {[%clk 0:00:17]}  Kd3 {[%clk 0:00:05]} 48. Rxe4 {[%clk 0:00:16]}  Kxe4 {[%clk 0:00:04]} 49. h7 {[%clk 0:00:16]}  f2 {[%clk 0:00:04]} 50. Ke2 {[%clk 0:00:16]}  f1=Q+ {[%clk 0:00:04]} 51. Kxf1 {[%clk 0:00:16]}  c2 {[%clk 0:00:05]} 52. h8=Q {[%clk 0:00:16]}  c1=Q+ {[%clk 0:00:06]} 53. Kg2 {[%clk 0:00:17]}  Qd2+ {[%clk 0:00:06]} 54. Kg3 {[%clk 0:00:16]}  Qe3+ {[%clk 0:00:06]} 55. Kh2 {[%clk 0:00:15]}  Qf4+ {[%clk 0:00:06]} 56. Kh3 {[%clk 0:00:15]}  Qf3+ {[%clk 0:00:06]} 57. Kh2 {[%clk 0:00:16]}  Kd3 {[%clk 0:00:05]} 58. Qc8 {[%clk 0:00:12]}  Qf2+ {[%clk 0:00:04]} 59. Kh3 {[%clk 0:00:12]}  Kd2 {[%clk 0:00:04]} 60. Qxa6 {[%clk 0:00:10]}  d3 {[%clk 0:00:04]} 61. Qc4 {[%clk 0:00:09]}  Ke2 {[%clk 0:00:03]} 62. a4 {[%clk 0:00:06]}  Qf3+ {[%clk 0:00:03]} 63. Kh2 {[%clk 0:00:06]}  Qe3 {[%clk 0:00:01]} 64. a5 {[%clk 0:00:06]}  f6 {[%clk 0:00:02]} 65. a6 {[%clk 0:00:06]}  Ke1 {[%clk 0:00:02]} 66. Qb4+ {[%clk 0:00:06]}  Kf1 {[%clk 0:00:02]} 67. Qb1+ {[%clk 0:00:06]}  Kf2 {[%clk 0:00:03]} 68. Qg1+ {[%clk 0:00:07]}  Kf3 {[%clk 0:00:03]} 69. Qg3+ {[%clk 0:00:05]}  Ke4 {[%clk 0:00:03]} 70. Qxe3+ {[%clk 0:00:06]}  Kxe3 {[%clk 0:00:04]} 71. a7 {[%clk 0:00:06]}  d2 {[%clk 0:00:05]} 72. a8=Q {[%clk 0:00:07]}  d1=Q {[%clk 0:00:06]} 73. Qa7+ {[%clk 0:00:05]}  Kf4 {[%clk 0:00:05]} 74. Qf2+ {[%clk 0:00:06]}  Kxg4 {[%clk 0:00:05]} 75. Qxf6 {[%clk 0:00:05]}  Qe2+ {[%clk 0:00:05]} 76. Kg1 {[%clk 0:00:06]}  Qe1+ {[%clk 0:00:05]} 77. Qf1 {[%clk 0:00:06]}  Qxf1+ {[%clk 0:00:05]} 78. Kxf1 {[%clk 0:00:07]} 1/2-1/2


[Site "https://www.chess.com"]

[Event "Titled Tuesday Blitz October 11 Early 2022"]
[White "Bacrot, Etienne"]
[Black "Subelj, Jan"]
[WhiteFideId "605506"]
[BlackFideId "14618583"]
[WhiteElo "2666"]
[BlackElo "2394"]
[Result "1-0"]
[Round "04"]
[TimeControl "180+1"]
[Date "2022.10.11"]
[WhiteClock "0:00:06"]
[BlackClock "0:00:02"]

1. e4 {[%clk 0:03:00]}  c5 {[%clk 0:02:58]} 2. Nf3 {[%clk 0:03:01]}  d6 {[%clk 0:02:55]} 3. Bb5+ {[%clk 0:03:01]}  Nd7 {[%clk 0:02:54]} 4. d4 {[%clk 0:02:59]}  cxd4 {[%clk 0:02:53]} 5. Qxd4 {[%clk 0:02:59]}  a6 {[%clk 0:02:51]} 6. Be2 {[%clk 0:02:59]}  Ngf6 {[%clk 0:02:48]} 7. O-O {[%clk 0:02:56]}  e5 {[%clk 0:02:47]} 8. Qe3 {[%clk 0:02:56]}  d5 {[%clk 0:02:45]} 9. exd5 {[%clk 0:02:50]}  Nxd5 {[%clk 0:02:41]} 10. Qe4 {[%clk 0:02:49]}  N5f6 {[%clk 0:02:40]} 11. Qh4 {[%clk 0:02:49]}  Be7 {[%clk 0:02:38]} 12. Rd1 {[%clk 0:02:47]}  Qc7 {[%clk 0:02:34]} 13. Nc3 {[%clk 0:02:45]}  O-O {[%clk 0:02:32]} 14. Bg5 {[%clk 0:02:41]}  h6 {[%clk 0:02:32]} 15. Bxh6 {[%clk 0:02:38]}  gxh6 {[%clk 0:02:33]} 16. Qxh6 {[%clk 0:02:38]}  Ng4 {[%clk 0:02:26]} 17. Qh5 {[%clk 0:02:05]}  Ndf6 {[%clk 0:02:24]} 18. Qg5+ {[%clk 0:02:04]}  Kh8 {[%clk 0:02:19]} 19. h3 {[%clk 0:02:04]}  Rg8 {[%clk 0:02:18]} 20. Nd5 {[%clk 0:01:31]}  Nxd5 {[%clk 0:02:10]} 21. Qh5+ {[%clk 0:01:16]}  Kg7 {[%clk 0:02:08]} 22. Rxd5 {[%clk 0:01:15]}  Nf6 {[%clk 0:02:06]} 23. Qg5+ {[%clk 0:01:00]}  Kf8 {[%clk 0:01:59]} 24. Qh6+ {[%clk 0:00:59]}  Ke8 {[%clk 0:01:57]} 25. Rxe5 {[%clk 0:00:59]}  Be6 {[%clk 0:01:58]} 26. Re1 {[%clk 0:00:55]}  Rg6 {[%clk 0:01:47]} 27. Qe3 {[%clk 0:00:43]}  Rd8 {[%clk 0:01:25]} 28. Bd3 {[%clk 0:00:40]}  Rg7 {[%clk 0:01:20]} 29. Qh6 {[%clk 0:00:34]}  Rg8 {[%clk 0:01:15]} 30. Ng5 {[%clk 0:00:31]}  Rd5 {[%clk 0:01:03]} 31. Nxe6 {[%clk 0:00:25]}  fxe6 {[%clk 0:00:52]} 32. Rxe6 {[%clk 0:00:20]}  Rdg5 {[%clk 0:00:52]} 33. Bf1 {[%clk 0:00:14]}  Nd5 {[%clk 0:00:46]} 34. h4 {[%clk 0:00:13]}  R5g7 {[%clk 0:00:45]} 35. Qh5+ {[%clk 0:00:13]}  Kf8 {[%clk 0:00:43]} 36. Qxd5 {[%clk 0:00:13]}  Rf7 {[%clk 0:00:30]} 37. R6e3 {[%clk 0:00:13]}  Qxc2 {[%clk 0:00:27]} 38. Rf3 {[%clk 0:00:12]}  Rg7 {[%clk 0:00:27]} 39. Rxf7+ {[%clk 0:00:11]}  Rxf7 {[%clk 0:00:28]} 40. Qd4 {[%clk 0:00:12]}  Bf6 {[%clk 0:00:27]} 41. Qd6+ {[%clk 0:00:11]}  Kg7 {[%clk 0:00:27]} 42. Qg3+ {[%clk 0:00:12]}  Qg6 {[%clk 0:00:23]} 43. Qxg6+ {[%clk 0:00:11]}  Kxg6 {[%clk 0:00:24]} 44. g3 {[%clk 0:00:11]}  Bxb2 {[%clk 0:00:24]} 45. Re2 {[%clk 0:00:11]}  Bd4 {[%clk 0:00:24]} 46. Kg2 {[%clk 0:00:11]}  b5 {[%clk 0:00:23]} 47. f4 {[%clk 0:00:12]}  Rc7 {[%clk 0:00:19]} 48. Kf3 {[%clk 0:00:11]}  Rc3+ {[%clk 0:00:19]} 49. Kg4 {[%clk 0:00:11]}  Kf6 {[%clk 0:00:19]} 50. Bg2 {[%clk 0:00:12]}  b4 {[%clk 0:00:19]} 51. Bd5 {[%clk 0:00:12]}  a5 {[%clk 0:00:19]} 52. Re6+ {[%clk 0:00:12]}  Kg7 {[%clk 0:00:19]} 53. h5 {[%clk 0:00:12]}  a4 {[%clk 0:00:19]} 54. h6+ {[%clk 0:00:12]}  Kh8 {[%clk 0:00:16]} 55. Be4 {[%clk 0:00:11]}  Rc8 {[%clk 0:00:16]} 56. Ra6 {[%clk 0:00:10]}  a3 {[%clk 0:00:16]} 57. Bd5 {[%clk 0:00:09]}  Bf2 {[%clk 0:00:11]} 58. Kf3 {[%clk 0:00:10]}  Be1 {[%clk 0:00:11]} 59. g4 {[%clk 0:00:10]}  Bd2 {[%clk 0:00:11]} 60. g5 {[%clk 0:00:09]}  Rf8 {[%clk 0:00:12]} 61. g6 {[%clk 0:00:06]}  Rxf4+ {[%clk 0:00:12]} 62. Ke2 {[%clk 0:00:07]}  Rg4 {[%clk 0:00:02]} 63. Ra8# {[%clk 0:00:06]} 1-0


[Site "https://www.chess.com"]

[Event "Titled Tuesday Blitz October 11 Early 2022"]
[White "Baskakov, Egor"]
[Black "Shohat, Yotam"]
[WhiteFideId "24197866"]
[BlackFideId "2813955"]
[WhiteElo "2211"]
[BlackElo "2199"]
[Result "1/2-1/2"]
[Round "04"]
[TimeControl "180+1"]
[Date "2022.10.12"]
[WhiteClock "0:01:06"]
[BlackClock "0:00:04"]

1. e4 {[%clk 0:03:00]}  c5 {[%clk 0:02:58]} 2. Nf3 {[%clk 0:03:00]}  d6 {[%clk 0:02:58]} 3. d4 {[%clk 0:03:00]}  cxd4 {[%clk 0:02:59]} 4. Nxd4 {[%clk 0:03:01]}  Nf6 {[%clk 0:03:00]} 5. Nc3 {[%clk 0:03:02]}  a6 {[%clk 0:03:00]} 6. a4 {[%clk 0:03:02]}  g6 {[%clk 0:02:58]} 7. g3 {[%clk 0:03:02]}  Bg7 {[%clk 0:02:58]} 8. Bg2 {[%clk 0:03:03]}  O-O {[%clk 0:02:58]} 9. h3 {[%clk 0:03:02]}  Nc6 {[%clk 0:02:56]} 10. Nde2 {[%clk 0:03:03]}  Nb4 {[%clk 0:02:48]} 11. O-O {[%clk 0:03:01]}  Bd7 {[%clk 0:02:36]} 12. Be3 {[%clk 0:02:56]}  Rc8 {[%clk 0:02:32]} 13. a5 {[%clk 0:02:56]}  Qc7 {[%clk 0:02:32]} 14. Bb6 {[%clk 0:02:56]}  Qb8 {[%clk 0:02:32]} 15. Qd2 {[%clk 0:02:53]}  Be6 {[%clk 0:02:15]} 16. Ra4 {[%clk 0:02:51]}  Nc6 {[%clk 0:02:07]} 17. Nd5 {[%clk 0:02:52]}  Bxd5 {[%clk 0:02:01]} 18. exd5 {[%clk 0:02:53]}  Ne5 {[%clk 0:02:01]} 19. b3 {[%clk 0:02:53]}  Ned7 {[%clk 0:01:43]} 20. Be3 {[%clk 0:02:50]}  Nc5 {[%clk 0:01:43]} 21. Ra2 {[%clk 0:02:42]}  Rfe8 {[%clk 0:01:28]} 22. Rb1 {[%clk 0:02:41]}  Qc7 {[%clk 0:01:14]} 23. c4 {[%clk 0:02:41]}  e6 {[%clk 0:00:46]} 24. dxe6 {[%clk 0:02:40]}  Rxe6 {[%clk 0:00:47]} 25. Nf4 {[%clk 0:02:39]}  Ree8 {[%clk 0:00:39]} 26. Rc2 {[%clk 0:02:40]}  Ne6 {[%clk 0:00:29]} 27. Nxe6 {[%clk 0:02:35]}  Rxe6 {[%clk 0:00:30]} 28. Bb6 {[%clk 0:02:31]}  Qe7 {[%clk 0:00:29]} 29. Rd1 {[%clk 0:02:29]}  Re8 {[%clk 0:00:28]} 30. Qd3 {[%clk 0:02:27]}  Nd7 {[%clk 0:00:23]} 31. Be3 {[%clk 0:02:24]}  Nc5 {[%clk 0:00:23]} 32. Bxc5 {[%clk 0:02:18]}  dxc5 {[%clk 0:00:24]} 33. Bd5 {[%clk 0:02:17]}  Re1+ {[%clk 0:00:23]} 34. Rxe1 {[%clk 0:02:18]}  Qxe1+ {[%clk 0:00:23]} 35. Kg2 {[%clk 0:02:18]}  Re7 {[%clk 0:00:10]} 36. Bf3 {[%clk 0:02:09]}  Bd4 {[%clk 0:00:09]} 37. Bd5 {[%clk 0:02:07]}  Qxa5 {[%clk 0:00:07]} 38. Re2 {[%clk 0:02:03]}  Qd8 {[%clk 0:00:07]} 39. Re4 {[%clk 0:01:59]}  Rxe4 {[%clk 0:00:06]} 40. Qxe4 {[%clk 0:02:00]}  b6 {[%clk 0:00:06]} 41. h4 {[%clk 0:01:49]}  Qf6 {[%clk 0:00:06]} 42. f4 {[%clk 0:01:49]}  h5 {[%clk 0:00:04]} 43. Kf3 {[%clk 0:01:43]}  a5 {[%clk 0:00:05]} 44. Qe8+ {[%clk 0:01:42]}  Kg7 {[%clk 0:00:05]} 45. Qd7 {[%clk 0:01:39]}  Bb2 {[%clk 0:00:04]} 46. Kg2 {[%clk 0:01:34]}  Bc1 {[%clk 0:00:04]} 47. Kh3 {[%clk 0:01:32]}  Be3 {[%clk 0:00:03]} 48. Kg2 {[%clk 0:01:30]}  Bd4 {[%clk 0:00:04]} 49. Qe8 {[%clk 0:01:28]}  Bc3 {[%clk 0:00:04]} 50. Be4 {[%clk 0:01:20]}  Bd4 {[%clk 0:00:04]} 51. f5 {[%clk 0:01:20]}  gxf5 {[%clk 0:00:04]} 52. Bf3 {[%clk 0:01:20]}  f4 {[%clk 0:00:04]} 53. Qe1 {[%clk 0:01:07]}  fxg3 {[%clk 0:00:04]} 54. Qxg3+ {[%clk 0:01:08]}  Qg6 {[%clk 0:00:04]} 55. Bxh5 {[%clk 0:01:07]}  Qxg3+ {[%clk 0:00:03]} 56. Kxg3 {[%clk 0:01:08]}  Kf6 {[%clk 0:00:02]} 57. Kg4 {[%clk 0:01:07]}  Ke6 {[%clk 0:00:02]} 58. Kf3 {[%clk 0:01:07]}  f5 {[%clk 0:00:02]} 59. Be8 {[%clk 0:01:07]}  Kf6 {[%clk 0:00:03]} 60. h5 {[%clk 0:01:05]}  Kg7 {[%clk 0:00:03]} 61. Bg6 {[%clk 0:01:05]}  Kf6 {[%clk 0:00:03]} 62. Be8 {[%clk 0:01:05]}  Be5 {[%clk 0:00:04]} 63. Bg6 {[%clk 0:01:06]}  Bd4 {[%clk 0:00:04]} 64. Be8 {[%clk 0:01:06]} 1/2-1/2


[Site "https://www.chess.com"]

[Event "Titled Tuesday Blitz October 11 Early 2022"]
[White "Beerdsen, Thomas"]
[Black "Rosen, Eric"]
[WhiteFideId "1030108"]
[BlackFideId "2032562"]
[WhiteElo "2567"]
[BlackElo "2362"]
[Result "1-0"]
[Round "04"]
[TimeControl "180+1"]
[Date "2022.10.11"]
[WhiteClock "0:01:50"]
[BlackClock "0:00:01"]

1. e4 {[%clk 0:03:00]}  c5 {[%clk 0:02:54]} 2. Nf3 {[%clk 0:03:00]}  d6 {[%clk 0:02:53]} 3. d4 {[%clk 0:03:00]}  Nf6 {[%clk 0:02:52]} 4. Nc3 {[%clk 0:03:00]}  cxd4 {[%clk 0:02:52]} 5. Nxd4 {[%clk 0:03:01]}  g6 {[%clk 0:02:45]} 6. h3 {[%clk 0:03:01]}  Bg7 {[%clk 0:02:45]} 7. Nf3 {[%clk 0:03:01]}  O-O {[%clk 0:02:43]} 8. Bc4 {[%clk 0:03:02]}  a6 {[%clk 0:02:38]} 9. a4 {[%clk 0:03:00]}  Be6 {[%clk 0:02:21]} 10. Bxe6 {[%clk 0:02:55]}  fxe6 {[%clk 0:02:22]} 11. O-O {[%clk 0:02:55]}  Nc6 {[%clk 0:02:19]} 12. Qe2 {[%clk 0:02:53]}  Nd7 {[%clk 0:01:51]} 13. Be3 {[%clk 0:02:44]}  Nde5 {[%clk 0:01:29]} 14. Nxe5 {[%clk 0:02:41]}  Bxe5 {[%clk 0:01:26]} 15. f4 {[%clk 0:02:35]}  Bxc3 {[%clk 0:01:24]} 16. bxc3 {[%clk 0:02:35]}  Qa5 {[%clk 0:01:25]} 17. Qc4 {[%clk 0:02:27]}  Rf7 {[%clk 0:01:13]} 18. f5 {[%clk 0:02:11]}  exf5 {[%clk 0:01:08]} 19. exf5 {[%clk 0:02:12]}  Ne5 {[%clk 0:01:07]} 20. Qb3 {[%clk 0:01:53]}  Qc7 {[%clk 0:00:35]} 21. fxg6 {[%clk 0:01:53]}  hxg6 {[%clk 0:00:28]} 22. Rxf7 {[%clk 0:01:54]}  Nxf7 {[%clk 0:00:27]} 23. Rf1 {[%clk 0:01:54]}  e5 {[%clk 0:00:25]} 24. Qe6 {[%clk 0:01:52]}  Rf8 {[%clk 0:00:04]} 25. Qxg6+ {[%clk 0:01:53]}  Kh8 {[%clk 0:00:05]} 26. Qf6+ {[%clk 0:01:52]}  Kh7 {[%clk 0:00:01]} 27. Rf5 {[%clk 0:01:52]}  Qd7 {[%clk 0:00:01]} 28. Rh5+ {[%clk 0:01:52]}  Kg8 {[%clk 0:00:01]} 29. Qg6# {[%clk 0:01:50]} 1-0


[Site "https://www.chess.com"]

[Event "Titled Tuesday Blitz October 11 Early 2022"]
[White "Bilan, Danila"]
[Black "Klukin, Kirill"]
[WhiteFideId "24161918"]
[BlackFideId "24199273"]
[WhiteElo "2203"]
[BlackElo "2290"]
[Result "0-1"]
[Round "04"]
[TimeControl "180+1"]
[Date "2022.10.12"]
[WhiteClock "0:00:14"]
[BlackClock "0:00:51"]

1. d4 {[%clk 0:02:59]}  Nf6 {[%clk 0:02:53]} 2. Nf3 {[%clk 0:02:59]}  g6 {[%clk 0:02:42]} 3. Bg5 {[%clk 0:02:55]}  Bg7 {[%clk 0:02:43]} 4. c3 {[%clk 0:02:55]}  O-O {[%clk 0:02:42]} 5. Nbd2 {[%clk 0:02:56]}  d5 {[%clk 0:02:43]} 6. e3 {[%clk 0:02:54]}  b6 {[%clk 0:02:41]} 7. Bd3 {[%clk 0:02:53]}  Bb7 {[%clk 0:02:42]} 8. Qe2 {[%clk 0:02:54]}  Nbd7 {[%clk 0:02:42]} 9. e4 {[%clk 0:02:53]}  h6 {[%clk 0:02:33]} 10. Bh4 {[%clk 0:02:37]}  Nh5 {[%clk 0:02:33]} 11. Bg3 {[%clk 0:02:33]}  Nxg3 {[%clk 0:02:33]} 12. hxg3 {[%clk 0:02:33]}  e5 {[%clk 0:02:32]} 13. dxe5 {[%clk 0:02:24]}  Nxe5 {[%clk 0:02:08]} 14. Nxe5 {[%clk 0:02:23]}  Bxe5 {[%clk 0:02:09]} 15. Rxh6 {[%clk 0:02:14]}  Re8 {[%clk 0:02:09]} 16. O-O-O {[%clk 0:02:02]}  Qg5 {[%clk 0:01:42]} 17. Rdh1 {[%clk 0:01:09]}  dxe4 {[%clk 0:01:39]} 18. Bc4 {[%clk 0:01:01]}  Bg7 {[%clk 0:01:25]} 19. R6h4 {[%clk 0:00:47]}  Rad8 {[%clk 0:01:24]} 20. Rf4 {[%clk 0:00:40]}  Re7 {[%clk 0:01:24]} 21. Kc2 {[%clk 0:00:33]}  Be5 {[%clk 0:00:56]} 22. Qg4 {[%clk 0:00:20]}  Bxf4 {[%clk 0:00:49]} 23. Qxf4 {[%clk 0:00:20]}  Qxf4 {[%clk 0:00:49]} 24. gxf4 {[%clk 0:00:21]}  e3 {[%clk 0:00:50]} 25. fxe3 {[%clk 0:00:20]}  Rxe3 {[%clk 0:00:50]} 26. Nf3 {[%clk 0:00:15]}  Bxf3 {[%clk 0:00:49]} 27. gxf3 {[%clk 0:00:16]}  Rxf3 {[%clk 0:00:50]} 28. Rh4 {[%clk 0:00:15]}  Rf2+ {[%clk 0:00:50]} 29. Kb3 {[%clk 0:00:14]}  Rdd2 {[%clk 0:00:51]} 0-1


[Site "https://www.chess.com"]

[Event "Titled Tuesday Blitz October 11 Early 2022"]
[White "Buscar, Michael"]
[Black "Biriukov, Ilja"]
[WhiteFideId "2603616"]
[BlackFideId "4113373"]
[WhiteElo "2010"]
[BlackElo "2426"]
[Result "1-0"]
[Round "04"]
[TimeControl "180+1"]
[Date "2022.10.12"]
[WhiteClock "0:01:24"]
[BlackClock "0:01:33"]

1. Nf3 {[%clk 0:03:00]}  d5 {[%clk 0:02:53]} 2. g3 {[%clk 0:03:00]}  Nc6 {[%clk 0:02:53]} 3. Bg2 {[%clk 0:03:01]}  e5 {[%clk 0:02:53]} 4. d3 {[%clk 0:03:00]}  f5 {[%clk 0:02:52]} 5. O-O {[%clk 0:02:56]}  Nf6 {[%clk 0:02:52]} 6. c4 {[%clk 0:02:53]}  d4 {[%clk 0:02:52]} 7. e3 {[%clk 0:02:51]}  dxe3 {[%clk 0:02:44]} 8. Bxe3 {[%clk 0:02:50]}  Be7 {[%clk 0:02:43]} 9. d4 {[%clk 0:02:47]}  e4 {[%clk 0:02:43]} 10. Ne5 {[%clk 0:02:47]}  O-O {[%clk 0:02:36]} 11. Nxc6 {[%clk 0:02:46]}  bxc6 {[%clk 0:02:36]} 12. Nc3 {[%clk 0:02:42]}  Ng4 {[%clk 0:02:36]} 13. Bf4 {[%clk 0:02:39]}  g5 {[%clk 0:02:34]} 14. Be5 {[%clk 0:02:39]}  Bf6 {[%clk 0:02:32]} 15. Bxf6 {[%clk 0:02:26]}  Qxf6 {[%clk 0:02:31]} 16. d5 {[%clk 0:02:17]}  Qh6 {[%clk 0:02:28]} 17. h3 {[%clk 0:02:14]}  Nf6 {[%clk 0:02:27]} 18. dxc6 {[%clk 0:02:10]}  Be6 {[%clk 0:02:24]} 19. Nd5 {[%clk 0:02:09]}  Bxd5 {[%clk 0:02:18]} 20. cxd5 {[%clk 0:02:07]}  f4 {[%clk 0:02:18]} 21. Re1 {[%clk 0:01:51]}  f3 {[%clk 0:02:17]} 22. Bf1 {[%clk 0:01:51]}  Rae8 {[%clk 0:02:09]} 23. Re3 {[%clk 0:01:44]}  Qg6 {[%clk 0:01:55]} 24. d6 {[%clk 0:01:42]}  cxd6 {[%clk 0:01:54]} 25. Qxd6 {[%clk 0:01:41]}  Qf5 {[%clk 0:01:49]} 26. c7 {[%clk 0:01:32]}  g4 {[%clk 0:01:42]} 27. h4 {[%clk 0:01:29]}  Nd5 {[%clk 0:01:40]} 28. Bc4 {[%clk 0:01:27]}  Re5 {[%clk 0:01:37]} 29. Rd1 {[%clk 0:01:25]}  Kh8 {[%clk 0:01:34]} 30. Rxd5 {[%clk 0:01:23]}  Rxd5 {[%clk 0:01:33]} 31. Qxd5 {[%clk 0:01:24]} 1-0


[Site "https://www.chess.com"]

[Event "Titled Tuesday Blitz October 11 Early 2022"]
[White "Carrasco Miranda, Andres"]
[Black "Broca Jimenez, Fernando"]
[WhiteFideId "3405990"]
[BlackFideId "5104742"]
[WhiteElo "2183"]
[BlackElo "2062"]
[Result "1-0"]
[Round "04"]
[TimeControl "180+1"]
[Date "2022.10.12"]
[WhiteClock "0:00:17"]
[BlackClock "0:00:04"]

1. d4 {[%clk 0:03:00]}  Nf6 {[%clk 0:02:59]} 2. c4 {[%clk 0:03:00]}  g6 {[%clk 0:02:59]} 3. g3 {[%clk 0:03:00]}  Bg7 {[%clk 0:02:59]} 4. Bg2 {[%clk 0:03:01]}  d6 {[%clk 0:03:00]} 5. Nc3 {[%clk 0:03:01]}  O-O {[%clk 0:03:00]} 6. Nf3 {[%clk 0:03:02]}  Nbd7 {[%clk 0:03:01]} 7. O-O {[%clk 0:03:02]}  e5 {[%clk 0:03:02]} 8. e4 {[%clk 0:03:02]}  c6 {[%clk 0:03:02]} 9. h3 {[%clk 0:03:02]}  Qc7 {[%clk 0:03:02]} 10. Be3 {[%clk 0:03:01]}  Re8 {[%clk 0:02:59]} 11. d5 {[%clk 0:03:01]}  c5 {[%clk 0:02:53]} 12. Ne1 {[%clk 0:03:01]}  Nh5 {[%clk 0:02:43]} 13. Nd3 {[%clk 0:02:59]}  a6 {[%clk 0:02:41]} 14. a4 {[%clk 0:02:49]}  Rf8 {[%clk 0:02:40]} 15. a5 {[%clk 0:02:41]}  Rb8 {[%clk 0:02:32]} 16. b3 {[%clk 0:02:32]}  Qd8 {[%clk 0:02:00]} 17. Kh2 {[%clk 0:02:25]}  Qe8 {[%clk 0:01:56]} 18. Qd2 {[%clk 0:02:08]}  f5 {[%clk 0:01:50]} 19. exf5 {[%clk 0:02:07]}  gxf5 {[%clk 0:01:51]} 20. f4 {[%clk 0:02:02]}  e4 {[%clk 0:01:46]} 21. Nf2 {[%clk 0:01:55]}  Qg6 {[%clk 0:01:03]} 22. Nh1 {[%clk 0:01:55]}  Ndf6 {[%clk 0:01:00]} 23. Rg1 {[%clk 0:01:47]}  Kh8 {[%clk 0:00:58]} 24. Bf1 {[%clk 0:01:47]}  Rg8 {[%clk 0:00:58]} 25. Be2 {[%clk 0:01:46]}  Bd7 {[%clk 0:00:50]} 26. Ra2 {[%clk 0:01:45]}  h6 {[%clk 0:00:44]} 27. Nd1 {[%clk 0:01:44]}  Nh7 {[%clk 0:00:44]} 28. Qe1 {[%clk 0:01:26]}  N5f6 {[%clk 0:00:41]} 29. Bd2 {[%clk 0:01:22]}  Qf7 {[%clk 0:00:39]} 30. Bc3 {[%clk 0:01:21]}  Nh5 {[%clk 0:00:33]} 31. Ne3 {[%clk 0:01:19]}  Rbf8 {[%clk 0:00:22]} 32. Bxg7+ {[%clk 0:01:16]}  Rxg7 {[%clk 0:00:23]} 33. Bd1 {[%clk 0:01:06]}  Rfg8 {[%clk 0:00:22]} 34. Rag2 {[%clk 0:01:03]}  N5f6 {[%clk 0:00:20]} 35. Qc3 {[%clk 0:01:01]}  Nf8 {[%clk 0:00:19]} 36. g4 {[%clk 0:00:55]}  fxg4 {[%clk 0:00:19]} 37. hxg4 {[%clk 0:00:56]}  Nxg4+ {[%clk 0:00:18]} 38. Nxg4 {[%clk 0:00:53]}  Qxf4+ {[%clk 0:00:16]} 39. Kh3 {[%clk 0:00:48]}  Kh7 {[%clk 0:00:16]} 40. Nf2 {[%clk 0:00:40]}  e3 {[%clk 0:00:16]} 41. Bc2+ {[%clk 0:00:34]}  Kh8 {[%clk 0:00:16]} 42. Nd3 {[%clk 0:00:28]}  Qf3+ {[%clk 0:00:12]} 43. Kh2 {[%clk 0:00:26]}  Ng6 {[%clk 0:00:10]} 44. Rg3 {[%clk 0:00:20]}  Qf5 {[%clk 0:00:07]} 45. Nde5 {[%clk 0:00:18]}  Nh4 {[%clk 0:00:05]} 46. Bxf5 {[%clk 0:00:17]}  Nxf5 {[%clk 0:00:05]} 47. Nf7+ {[%clk 0:00:17]}  Kh7 {[%clk 0:00:04]} 48. Nf6# {[%clk 0:00:17]} 1-0


[Site "https://www.chess.com"]